Workbook

Sheet 1
A1: 附件1：
A2: 修文县2023年公开招聘社区工作者总成绩排名
A3: 序号 | B3: 准考证号 | C3: 姓名 | D3: 笔试成绩 | E3: 面试成绩 | F3: 招聘单位 | G3: 招聘岗位 | H3: 招聘岗位代码 | I3: 总成绩 | J3: 总成绩排名 | K3: 备注
A4: 1 | B4: 2023030102015 | C4: 叶桃 | D4: 92.5 | E4: 83.2 | F4: 修文县龙场街道龙岗社区 | G4: 公共事务员 | H4: 2023010101 | I4: =D4/1.5*0.6+E4*0.4 -> 70.28 | J4: 1
A5: 2 | B5: 2023030102325 | C5: 魏玉龙 | D5: 96 | E5: 76.2 | F5: 修文县龙场街道龙岗社区 | G5: 公共事务员 | H5: 2023010101 | I5: 68.88 | J5: 2
A6: 3 | B6: 2023030102919 | C6: 施艳 | D6: 96 | E6: 75.8 | F6: 修文县龙场街道龙岗社区 | G6: 公共事务员 | H6: 2023010101 | I6: 68.72 | J6: 3
A7: 4 | B7: 2023030102418 | C7: 路忠雪 | D7: 94.5 | E7: 71 | F7: 修文县龙场街道龙岗社区 | G7: 公共事务员 | H7: 2023010101 | I7: 66.2 | J7: 4
A8: 5 | B8: 2023030101912 | C8: 蒋诗瑛 | D8: 91 | E8: 71 | F8: 修文县龙场街道龙岗社区 | G8: 公共事务员 | H8: 2023010101 | I8: 64.8 | J8: 5
A9: 6 | B9: 2023030102419 | C9: 蔡俏 | D9: 105.5 | E9: 61.2 | F9: 修文县龙场街道龙岗社区 | G9: 公共事务员 | H9: 2023010101 | I9: 66.68 | K9: 面试成绩未达最低合格分数线
A10: 7 | B10: 2023030102027 | C10: 罗念一 | D10: 93 | E10: 69.4 | F10: 修文县龙场街道龙岗社区 | G10: 公共事务员 | H10: 2023010101 | I10: 64.96 | K10: 面试成绩未达最低合格分数线
A11: 8 | B11: 2023030102021 | C11: 李昌云 | D11: 93.5 | E11: 62.2 | F11: 修文县龙场街道龙岗社区 | G11: 公共事务员 | H11: 2023010101 | I11: 62.28 | K11: 面试成绩未达最低合格分数线
A12: 9 | B12: 2023030102827 | C12: 宋文霞 | D12: 94.5 | E12: 缺考 | F12: 修文县龙场街道龙岗社区 | G12: 公共事务员 | H12: 2023010101
A13: 10 | B13: 2023030101911 | C13: 赵红亚 | D13: 93.5 | E13: 缺考 | F13: 修文县龙场街道龙岗社区 | G13: 公共事务员 | H13: 2023010101
A14: 11 | B14: 2023030102420 | C14: 郭源 | D14: 92 | E14: 缺考 | F14: 修文县龙场街道龙岗社区 | G14: 公共事务员 | H14: 2023010101
A15: 12 | B15: 2023030103023 | C15: 薛菊 | D15: 91.5 | E15: 缺考 | F15: 修文县龙场街道龙岗社区 | G15: 公共事务员 | H15: 2023010101
A16: 13 | B16: 2023030101727 | C16: 叶根 | D16: 95.5 | E16: 74.8 | F16: 修文县龙场街道虎山社区 | G16: 公共事务员 | H16: 2023010201 | I16: =D16/1.5*0.6+E16*0.4 -> 68.12 | J16: 1
A17: 14 | B17: 2023030101808 | C17: 陶祝吉 | D17: 91 | E17: 71.8 | F17: 修文县龙场街道虎山社区 | G17: 公共事务员 | H17: 2023010201 | I17: 65.12 | J17: 2
A18: 15 | B18: 2023030101630 | C18: 冯钇炜 | D18: 89.5 | E18: 69 | F18: 修文县龙场街道虎山社区 | G18: 公共事务员 | H18: 2023010201 | I18: 63.4 | K18: 面试成绩未达最低合格分数线
A19: 16 | B19: 2023030101625 | C19: 陈屿琳 | D19: 89.5 | E19: 59.4 | F19: 修文县龙场街道虎山社区 | G19: 公共事务员 | H19: 2023010201 | I19: 59.56 | K19: 面试成绩未达最低合格分数线
A20: 17 | B20: 2023030103321 | C20: 樊梅 | D20: 98.5 | E20: 80.4 | F20: 修文县龙场街道栖凤社区 | G20: 公共事务员 | H20: 2023010301 | I20: 71.56 | J20: 1
A21: 18 | B21: 2023030103421 | C21: 陈杰 | D21: 97.5 | E21: 73.8 | F21: 修文县龙场街道栖凤社区 | G21: 公共事务员 | H21: 2023010301 | I21: 68.52 | J21: 2
A22: 19 | B22: 2023030103319 | C22: 凌舒俞 | D22: 90 | E22: 67 | F22: 修文县龙场街道栖凤社区 | G22: 公共事务员 | H22: 2023010301 | I22: 62.8 | K22: 面试成绩未达最低合格分数线
A23: 20 | B23: 2023030103814 | C23: 吴鑫 | D23: 92.5 | E23: 80.8 | F23: 修文县扎佐街道红桥社区 | G23: 公共事务员 | H23: 2023020101 | I23: 69.32 | J23: 1
A24: 21 | B24: 2023030104005 | C24: 钱咏梅 | D24: 89 | E24: 82.2 | F24: 修文县扎佐街道红桥社区 | G24: 公共事务员 | H24: 2023020101 | I24: 68.48 | J24: 2
A25: 22 | B25: 2023030103825 | C25: 余宗建 | D25: 96.5 | E25: 74.6 | F25: 修文县扎佐街道红桥社区 | G25: 公共事务员 | H25: 2023020101 | I25: 68.44 | J25: 3
A26: 23 | B26: 2023030103824 | C26: 刘成程 | D26: 91 | E26: 79.4 | F26: 修文县扎佐街道红桥社区 | G26: 公共事务员 | H26: 2023020101 | I26: 68.16 | J26: 4
A27: 24 | B27: 2023030103804 | C27: 周航 | D27: 91 | E27: 75.8 | F27: 修文县扎佐街道红桥社区 | G27: 公共事务员 | H27: 2023020101 | I27: 66.72 | J27: 5
A28: 25 | B28: 2023030103709 | C28: 戴青云 | D28: 87 | E28: 缺考 | F28: 修文县扎佐街道红桥社区 | G28: 公共事务员 | H28: 2023020101
A29: 26 | B29: 2023030100130 | C29: 曹雨嫣 | D29: 98.5 | E29: 80 | F29: 修文县景阳街道景阳社区 | G29: 公共事务员 | H29: 2023030101 | I29: =D29/1.5*0.6+E29*0.4 -> 71.4 | J29: 1
A30: 27 | B30: 2023030100123 | C30: 潘明顺 | D30: 79 | E30: 50.4 | F30: 修文县景阳街道景阳社区 | G30: 公共事务员 | H30: 2023030101 | I30: 51.76 | K30: 面试成绩未达最低合格分数线
A31: 28 | B31: 2023030100113 | C31: 陈国斌 | D31: 88.5 | E31: 37.4 | F31: 修文县景阳街道景阳社区 | G31: 公共事务员 | H31: 2023030101 | I31: 50.36 | K31: 面试成绩未达最低合格分数线
A32: 29 | B32: 2023030100606 | C32: 聂培敏 | D32: 106.5 | E32: 82.2 | F32: 修文县景阳街道襄阳社区 | G32: 公共事务员 | H32: 2023030201 | I32: 75.48 | J32: 1
A33: 30 | B33: 2023030100428 | C33: 姚涛 | D33: 102.5 | E33: 75.8 | F33: 修文县景阳街道襄阳社区 | G33: 公共事务员 | H33: 2023030201 | I33: 71.32 | J33: 2
A34: 31 | B34: 2023030100603 | C34: 敖洪娅 | D34: 95 | E34: 79.4 | F34: 修文县景阳街道襄阳社区 | G34: 公共事务员 | H34: 2023030201 | I34: 69.76 | J34: 3
A35: 32 | B35: 2023030101009 | C35: 陆治任 | D35: 91.5 | E35: 72.4 | F35: 修文县景阳街道襄阳社区 | G35: 公共事务员 | H35: 2023030201 | I35: 65.56 | J35: 4
A36: 33 | B36: 2023030100524 | C36: 徐颖 | D36: 97.5 | E36: 68.2 | F36: 修文县景阳街道襄阳社区 | G36: 公共事务员 | H36: 2023030201 | I36: 66.28 | K36: 面试成绩未达最低合格分数线
A37: 34 | B37: 2023030101017 | C37: 姚崔灿 | D37: 93.5 | E37: 69 | F37: 修文县景阳街道襄阳社区 | G37: 公共事务员 | H37: 2023030201 | I37: 65 | K37: 面试成绩未达最低合格分数线
A38: 35 | B38: 2023030100921 | C38: 雷文蕊 | D38: 92.5 | E38: 69.2 | F38: 修文县景阳街道襄阳社区 | G38: 公共事务员 | H38: 2023030201 | I38: 64.68 | K38: 面试成绩未达最低合格分数线
A39: 36 | B39: 2023030100808 | C39: 王莉灵 | D39: 91 | E39: 66 | F39: 修文县景阳街道襄阳社区 | G39: 公共事务员 | H39: 2023030201 | I39: 62.8 | K39: 面试成绩未达最低合格分数线
A40: 37 | B40: 2023030100812 | C40: 李若梅 | D40: 92.5 | E40: 63.6 | F40: 修文县景阳街道襄阳社区 | G40: 公共事务员 | H40: 2023030201 | I40: 62.44 | K40: 面试成绩未达最低合格分数线
A41: 38 | B41: 2023030100302 | C41: 冯健鹏 | D41: 98.5 | E41: 40.2 | F41: 修文县景阳街道襄阳社区 | G41: 公共事务员 | H41: 2023030201 | I41: 55.48 | K41: 面试成绩未达最低合格分数线
A42: 39 | B42: 2023030101108 | C42: 杨林勇 | D42: 94.5 | E42: 44 | F42: 修文县景阳街道襄阳社区 | G42: 公共事务员 | H42: 2023030201 | I42: 55.4 | K42: 面试成绩未达最低合格分数线
A43: 40 | B43: 2023030100409 | C43: 胡静 | D43: 97 | E43: 缺考 | F43: 修文县景阳街道襄阳社区 | G43: 公共事务员 | H43: 2023030201
A44: 41 | B44: 2023030100621 | C44: 杨正波 | D44: 92 | E44: 缺考 | F44: 修文县景阳街道襄阳社区 | G44: 公共事务员 | H44: 2023030201
A45: 42 | B45: 2023030100414 | C45: 梅嫒 | D45: 92 | E45: 缺考 | F45: 修文县景阳街道襄阳社区 | G45: 公共事务员 | H45: 2023030201
A46: 43 | B46: 2023030100907 | C46: 徐滨洪 | D46: 91 | E46: 缺考 | F46: 修文县景阳街道襄阳社区 | G46: 公共事务员 | H46: 2023030201
A47: 44 | B47: 2023030101418 | C47: 韦杰 | D47: 93.5 | E47: 78.2 | F47: 修文县景阳街道珍珠河社区 | G47: 公共事务员 | H47: 2023030301 | I47: =D47/1.5*0.6+E47*0.4 -> 68.68 | J47: 1
A48: 45 | B48: 2023030101213 | C48: 张贤 | D48: 86 | E48: 78.6 | F48: 修文县景阳街道珍珠河社区 | G48: 公共事务员 | H48: 2023030301 | I48: =D48/1.5*0.6+E48*0.4 -> 65.84 | J48: 2
A49: 46 | B49: 2023030101404 | C49: 胡黎 | D49: 88.5 | E49: 缺考 | F49: 修文县景阳街道珍珠河社区 | G49: 公共事务员 | H49: 2023030301
A50: 47 | B50: 2023030101613 | C50: 陈相勤 | D50: 98 | E50: 80.2 | F50: 修文县久长街道长久社区 | G50: 公共事务员 | H50: 2023040101 | I50: =D50/1.5*0.6+E50*0.4 -> 71.28 | J50: 1
A51: 48 | B51: 2023030101523 | C51: 柴青 | D51: 96.5 | E51: 74 | F51: 修文县久长街道长久社区 | G51: 公共事务员 | H51: 2023040101 | I51: =D51/1.5*0.6+E51*0.4 -> 68.2 | J51: 2
A52: 49 | B52: 2023030101610 | C52: 肖广朴 | D52: 93.5 | E52: 缺考 | F52: 修文县久长街道长久社区 | G52: 公共事务员 | H52: 2023040101
A53: 50 | B53: 2023030101501 | C53: 杨鹏 | D53: 86 | E53: 76.8 | F53: 修文县久长街道青龙社区 | G53: 公共事务员 | H53: 2023040201 | I53: =D53/1.5*0.6+E53*0.4 -> 65.12 | J53: 1
A54: 51 | B54: 2023030101505 | C54: 李维珍 | D54: 84.5 | E54: 70 | F54: 修文县久长街道青龙社区 | G54: 公共事务员 | H54: 2023040201 | I54: =D54/1.5*0.6+E54*0.4 -> 61.8 | J54: 2
A55: 52 | B55: 2023030101430 | C55: 张正威 | D55: 86 | E55: 缺考 | F55: 修文县久长街道青龙社区 | G55: 公共事务员 | H55: 2023040201
A56: 53 | B56: 2023030103501 | C56: 穆民强 | D56: 98 | E56: 78.4 | F56: 修文县小箐乡小箐社区 | G56: 公共事务员 | H56: 2023050101 | I56: =D56/1.5*0.6+E56*0.4 -> 70.56 | J56: 1
A57: 54 | B57: 2023030103617 | C57: 尹曼 | D57: 91 | E57: 84.8 | F57: 修文县小箐乡小箐社区 | G57: 公共事务员 | H57: 2023050101 | I57: =D57/1.5*0.6+E57*0.4 -> 70.32 | J57: 2
A58: 55 | B58: 2023030103515 | C58: 张雪霜 | D58: 88.5 | E58: 80 | F58: 修文县小箐乡小箐社区 | G58: 公共事务员 | H58: 2023050101 | I58: =D58/1.5*0.6+E58*0.4 -> 67.4 | J58: 3
A59: 56 | B59: 2023030103429 | C59: 阳利安 | D59: 86.5 | E59: 72.8 | F59: 修文县小箐乡小箐社区 | G59: 公共事务员 | H59: 2023050101 | I59: =D59/1.5*0.6+E59*0.4 -> 63.72 | J59: 4
A60: 57 | B60: 2023030103615 | C60: 刘官伍 | D60: 81.5 | E60: 71 | F60: 修文县小箐乡小箐社区 | G60: 公共事务员 | H60: 2023050101 | I60: =D60/1.5*0.6+E60*0.4 -> 61 | J60: 5
A61: 58 | B61: 2023030103530 | C61: 陈英文 | D61: 82.5 | E61: 缺考 | F61: 修文县小箐乡小箐社区 | G61: 公共事务员 | H61: 2023050101
